fUSD/lending_fUSD_20240114
["ID","MTS","AMOUNT","RATE_DAILY","PERIOD"]
[311588372,1705254707088,-1277.19,0.00031506,2]
[311588373,1705254707098,-1941.84,0.00031506,2]
[311588374,1705254707108,-3928.23,0.00031506,2]
[311588375,1705254707118,-500.0,0.00031506,2]
[311588376,1705254707128,-702.7,0.00031506,2]
[311588377,1705254707138,-500.0,0.00031506,2]
[311588378,1705254707149,-500.0,0.00031506,2]
[311588379,1705254707160,-796.24,0.00031506,2]
[311588380,1705254707172,-2073.52,0.00031506,2]
[311588381,1705254707182,-1945.66,0.00031506,2]
[311588382,1705254707194,-581.79,0.00031506,2]
[311588383,1705254707204,-500.0,0.00031506,2]
[311588384,1705254707214,-2019.56,0.00031506,2]
[311588385,1705254707224,-500.0,0.00031506,2]
[311588386,1705254707234,-500.0,0.00031506,2]
[311588387,1705254707244,-1162.31,0.00031506,2]
[311588388,1705254707254,-744.39,0.00031506,2]
[311588389,1705254707264,-500.0,0.00031506,2]
[311588390,1705254707274,-1628.56,0.00031506,2]
[311588391,1705254707284,-1757.85,0.00031506,2]
[311588392,1705254707295,-500.0,0.00031506,2]
[311588393,1705254707305,-621.65,0.00031506,2]
[311588394,1705254707315,-24669.86,0.00031506,2]
[311588395,1705254707325,-500.0,0.00031506,2]
[311588396,1705254707334,-500.0,0.00031506,2]
[311588397,1705254707345,-790.77,0.00031506,2]
[311588398,1705254707355,-1131.11,0.00031506,2]
[311588399,1705254707366,-507.5514541,0.00031506,2]
[311588400,1705254707376,-500.0,0.00031506,2]
[311588401,1705254707386,-2627.87,0.00031506,2]
[311588402,1705254707397,-500.0,0.00031506,2]
[311588403,1705254707407,-500.0,0.00031506,2]
[311588404,1705254707417,-2431.74,0.00031506,2]
[311588405,1705254707428,-619.23,0.00031506,2]
[311588406,1705254707438,-1398.37,0.00031506,2]
[311588407,1705254707449,-500.0,0.00031506,2]
[311588408,1705254707459,-500.0,0.00031506,2]
[311588409,1705254707468,-500.0,0.00031506,2]
[311588410,1705254707478,-635.27,0.00031506,2]
[311588411,1705254707488,-500.0,0.00031506,2]
[311588412,1705254707498,-2128.54,0.00031506,2]
[311588413,1705254707507,-546.4,0.00031506,2]
[311588414,1705254707518,-500.0,0.00031506,2]
[311588415,1705254707528,-500.0,0.00031506,2]
[311588416,1705254707538,-730.39,0.00031506,2]
[311588417,1705254707548,-500.0,0.00031506,2]
[311588418,1705254707558,-746.79,0.00031506,2]
[311588419,1705254707569,-1845.78,0.00031506,2]
[311588420,1705254707579,-688.55,0.00031506,2]
[311588421,1705254707590,-1353.58,0.00031506,2]
[311588422,1705254707600,-2456.1,0.00031506,2]
[311588423,1705254707610,-500.0,0.00031506,2]
[311588424,1705254707620,-1751.67,0.00031506,2]
[311588425,1705254707631,-500.0,0.00031506,2]
[311588426,1705254707642,-958.1,0.00031506,2]
[311588427,1705254707652,-977.67,0.00031506,2]
[311588428,1705254707661,-500.0,0.00031506,2]
[311588429,1705254707671,-1005.3,0.00031506,2]
[311588430,1705254707681,-285.37172923,0.00031506,2]
[311588431,1705254707692,-1100.07,0.00031506,2]
[311588432,1705254707702,-2038.82,0.00031506,2]
[311588433,1705254707713,-2725.4,0.00031506,2]
[311588434,1705254707723,-645.07,0.00031506,2]
[311588435,1705254707733,-4814.13,0.00031506,2]
[311588436,1705254707743,-500.0,0.00031506,2]
[311588437,1705254707753,-1085.28,0.00031506,2]
[311588438,1705254707764,-500.0,0.00031506,2]
[311588439,1705254707774,-1023.19,0.00031506,2]
[311588440,1705254707784,-500.0,0.00031506,2]
[311588441,1705254707795,-938.38,0.00031506,2]
[311588442,1705254707804,-3050.06,0.00031506,2]
[311588443,1705254707815,-500.0,0.00031506,2]
[311588444,1705254707825,-650.45,0.00031506,2]
[311588445,1705254707835,-1098.42,0.00031506,2]
[311588446,1705254707845,-2866.89,0.00031506,2]
[311588447,1705254707855,-500.0,0.00031506,2]
[311588448,1705254707865,-991.95,0.00031506,2]
[311588449,1705254707875,-500.0,0.00031506,2]
[311588450,1705254707885,-500.0,0.00031506,2]
[311588451,1705254707896,-5608.33,0.00031506,2]
[311588452,1705254707906,-633.07,0.00031506,2]
[311588453,1705254707916,-500.0,0.00031506,2]
[311588454,1705254707926,-1002.42,0.00031506,2]
[311588455,1705254707937,-500.0,0.00031506,2]
[311588456,1705254707947,-500.0,0.00031506,2]
[311588457,1705254707958,-500.0,0.00031506,2]
[311588458,1705254707968,-6080.5,0.00031506,2]
[311588459,1705254707979,-500.0,0.00031506,2]
[311588460,1705254707989,-1200.16,0.00031506,2]
[311588461,1705254707999,-500.0,0.00031506,2]
[311588462,1705254708010,-500.0,0.00031506,2]
[311588463,1705254708020,-4523.2,0.00031506,2]
[311588464,1705254708030,-1443.19,0.00031506,2]
[311588465,1705254708040,-9121.86,0.00031506,2]
[311588466,1705254708050,-535.76,0.00031506,2]
[311588467,1705254708060,-1491.1,0.00031506,2]
[311588468,1705254708074,-500.0,0.00031506,2]
[311588469,1705254708084,-500.0,0.00031506,2]
[311588470,1705254708094,-2410.62,0.00031506,2]
[311588471,1705254708104,-500.0,0.00031506,2]
[311588472,1705254708116,-5763.39,0.00031506,2]
[311588473,1705254708126,-1168.02,0.00031506,2]
[311588474,1705254708136,-500.0,0.00031506,2]
[311588475,1705254708148,-617.19,0.00031506,2]
[311588476,1705254708158,-500.0,0.00031506,2]
[311588477,1705254708167,-2824.58,0.00031506,2]
[311588478,1705254708177,-5067.31,0.00031506,2]
[311588479,1705254708187,-1147.57,0.00031506,2]
[311588480,1705254708197,-6304.23108013,0.00031506,2]
[311588481,1705254708234,-2560.00000001,0.00031506,2]
[311588482,1705254708247,-575.575,0.00031506,2]
[311588483,1705254708606,-241.13515859,0.00029821,2]
[311588484,1705254708617,-30139.50233799,0.0003,2]
[311588485,1705254708627,-2000.0,0.00030036,4]
[311588486,1705254708637,-500.0,0.00030136,2]
[311588487,1705254708649,-500.0,0.0003041,2]
[311588488,1705254708659,-500.0,0.00030684,2]
[311588489,1705254708670,-10427.63391986,0.00031506,2]
[311588490,1705254708680,-822.98,0.00031506,2]
[311588491,1705254708690,-1423.93,0.00031506,2]
[311588492,1705254708700,-1153.35,0.00031506,2]
[311588493,1705254708711,-641.77,0.00031506,2]
[311588494,1705254708721,-3022.19,0.00031506,2]
[311588495,1705254708730,-500.0,0.00031506,2]
[311588496,1705254708741,-612.74,0.00031506,2]
[311588497,1705254708751,-500.0,0.00031506,2]
[311588498,1705254708761,-500.0,0.00031506,2]
[311588499,1705254708771,-835.25,0.00031506,2]
[311588500,1705254708782,-500.0,0.00031506,2]
[311588501,1705254708791,-1550.26,0.00031506,2]
[311588502,1705254708802,-893.14,0.00031506,2]
[311588503,1705254708811,-320.01189,0.00031506,7]
[311588504,1705254708821,-320.01189,0.00031506,7]
[311588505,1705254708831,-232.559274,0.00031506,7]
[311588506,1705254708840,-232.559274,0.00031506,7]
[311588507,1705254708850,-151.0,0.00031506,7]
[311588508,1705254708860,-159.915185,0.00031506,7]
[311588509,1705254708870,-159.915185,0.00031506,7]
[311588510,1705254708880,-158.76,0.00031506,7]
[311588511,1705254708891,-158.76,0.00031506,7]
[311588512,1705254708901,-245.287094,0.00031506,7]
[311588513,1705254708911,-245.287094,0.00031506,7]
[311588514,1705254708922,-386.185175,0.00031506,7]
[311588515,1705254708933,-386.185175,0.00031506,7]
[311588516,1705254708943,-151.0,0.00031506,7]
[311588517,1705254708954,-831.08,0.00031514,2]
[311588518,1705254708964,-170.77,0.00031593,2]
[311588519,1705254708974,-150.0,0.00031595,2]
[311588520,1705254708985,-1761.40675176,0.00031602,5]
[311588521,1705254708995,-831.08,0.00031666,2]
[311588522,1705254709005,-450.0,0.00031673,3]
[311588523,1705254709015,-179.29,0.00031697,2]
[311588524,1705254709026,-155.29671215,0.00031749,19]
[311588525,1705254709037,-500.0,0.00031779,2]
[311588526,1705254709047,-300.0,0.00031779,2]
[311588527,1705254709057,-720.09,0.0003178,2]
[311588528,1705254709067,-500.0,0.0003178,2]
[311588529,1705254709076,-500.0,0.0003178,2]
[311588530,1705254709087,-500.0,0.0003178,2]
[311588531,1705254709097,-250.31270873,0.0003178,2]
[311588532,1705254709106,-500.0,0.0003178,2]
[311588533,1705254709115,-471.36284936,0.0003178,2]
[311588534,1705254709128,-28.63715064,0.0003178,2]
[311588535,1705254709138,-500.0,0.0003178,2]
[311588536,1705254709149,-500.0,0.0003178,2]
[311588537,1705254709159,-105.54754936,0.0003178,2]
[311588538,1705254709171,-394.45245064,0.0003178,2]
[311588539,1705254709181,-500.0,0.0003178,2]
[311588540,1705254709191,-653.52,0.0003178,2]
[311588541,1705254709201,-520.83,0.0003178,2]
[311588542,1705254709210,-500.0,0.0003178,2]
[311588543,1705254709219,-569.22,0.0003178,2]
[311588544,1705254709229,-500.0,0.0003178,2]
[311588545,1705254709238,-730.18,0.0003178,2]
[311588546,1705254709247,-500.0,0.0003178,2]
[311588547,1705254709256,-500.0,0.0003178,2]
[311588548,1705254709266,-63.98534731,0.0003178,2]
[311588549,1705254709304,-436.01465269,0.0003178,2]
[311588550,1705254709314,-500.0,0.0003178,2]
[311588551,1705254709324,-500.0,0.0003178,2]
[311588552,1705254709334,-517.73,0.0003178,2]
[311588553,1705254709343,-500.0,0.0003178,2]
[311588554,1705254709352,-631.82501505,0.0003178,2]
[311588555,1705254709362,-643.63,0.0003178,2]
[311588556,1705254709371,-500.0,0.0003178,2]
[311588557,1705254709381,-609.69,0.0003178,2]
[311588558,1705254709392,-500.0,0.0003178,2]
[311588559,1705254709401,-500.0,0.0003178,2]
[311588560,1705254709411,-500.0,0.0003178,2]
[311588561,1705254709420,-500.0,0.0003178,2]
[311588562,1705254709429,-500.0,0.0003178,2]
[311588563,1705254709439,-500.0,0.0003178,2]
[311588564,1705254709448,-500.0,0.0003178,2]
[311588565,1705254709457,-500.97,0.0003178,2]
[311588566,1705254709466,-500.0,0.0003178,2]
[311588567,1705254709476,-952.85,0.0003178,2]
[311588568,1705254709485,-500.0,0.0003178,2]
[311588569,1705254709496,-500.0,0.0003178,2]
[311588570,1705254709506,-500.0,0.0003178,2]
[311588571,1705254709515,-500.0,0.0003178,2]
[311588572,1705254709525,-1010.48,0.0003178,2]
[311588573,1705254709534,-500.0,0.0003178,2]
[311588574,1705254709543,-542.19,0.0003178,2]
[311588575,1705254709552,-500.0,0.0003178,2]
[311588576,1705254709561,-500.0,0.0003178,2]
[311588577,1705254709571,-614.14,0.0003178,2]
[311588578,1705254709581,-500.0,0.0003178,2]
[311588579,1705254709590,-500.0,0.0003178,2]
[311588580,1705254709599,-833.62,0.0003178,2]
[311588581,1705254709608,-500.0,0.0003178,2]
[311588582,1705254709617,-500.0,0.0003178,2]
[311588583,1705254709626,-621.16,0.0003178,2]
[311588584,1705254709636,-500.0,0.0003178,2]
[311588585,1705254709647,-647.94423737,0.0003178,2]
[311588586,1705254709656,-500.0,0.0003178,2]
[311588587,1705254709665,-677.45,0.0003178,2]
[311588588,1705254709675,-500.0,0.0003178,2]
[311588589,1705254709686,-519.26,0.0003178,2]
[311588590,1705254709695,-500.0,0.0003178,2]
[311588591,1705254709707,-500.0,0.0003178,2]
[311588592,1705254709716,-500.0,0.0003178,2]
[311588593,1705254709725,-903.38,0.0003178,2]
[311588594,1705254709736,-1028.98,0.0003178,2]
[311588595,1705254709745,-792.6,0.0003178,2]
[311588596,1705254709755,-500.0,0.0003178,2]
[311588597,1705254709764,-500.0,0.0003178,2]
[311588598,1705254709773,-500.0,0.0003178,2]
[311588599,1705254709783,-629.21,0.0003178,2]
[311588600,1705254709793,-500.0,0.0003178,2]
[311588601,1705254709802,-500.0,0.0003178,2]
[311588602,1705254709811,-500.0,0.0003178,2]
[311588603,1705254709821,-500.0,0.0003178,2]
[311588604,1705254709830,-500.0,0.0003178,2]
[311588605,1705254709840,-500.0,0.0003178,2]
[311588606,1705254709849,-769.34,0.0003178,2]
[311588607,1705254709858,-500.0,0.0003178,2]
[311588608,1705254709868,-500.0,0.0003178,2]
[311588609,1705254709877,-716.68,0.0003178,2]
[311588610,1705254709887,-883.7,0.0003178,2]
[311588611,1705254709897,-500.0,0.0003178,2]
[311588612,1705254709906,-854.99,0.0003178,2]
[311588613,1705254709916,-1889.13,0.0003178,2]
[311588614,1705254709925,-500.0,0.0003178,2]
[311588615,1705254709934,-500.0,0.0003178,2]
[311588616,1705254709944,-500.0,0.0003178,2]
[311588617,1705254709954,-500.0,0.0003178,2]
[311588618,1705254709964,-500.0,0.0003178,2]
[311588619,1705254709973,-1045.22466801,0.0003178,2]
[311588620,1705254709983,-598.47,0.0003178,2]
[311588621,1705254709992,-500.0,0.0003178,2]
[311588622,1705254710001,-684.19,0.0003178,2]
[311588623,1705254710010,-500.0,0.0003178,2]
[311588624,1705254710020,-1015.86,0.0003178,2]
[311588625,1705254710029,-1532.26,0.0003178,2]
[311588626,1705254710038,-543.96,0.0003178,2]
[311588627,1705254710048,-873.09,0.0003178,2]
[311588628,1705254710057,-544.01,0.0003178,2]
[311588629,1705254710070,-728.21,0.0003178,2]
[311588630,1705254710079,-500.0,0.0003178,2]
[311588631,1705254710089,-632.51,0.0003178,2]
[311588632,1705254710099,-847.21,0.0003178,2]
[311588633,1705254710110,-537.89,0.0003178,2]
[311588634,1705254710119,-500.0,0.0003178,2]
[311588635,1705254710129,-500.0,0.0003178,2]
[311588636,1705254710139,-300.0,0.0003178,2]
[311588637,1705254710150,-500.0,0.0003178,2]
[311588638,1705254710164,-291.68437313,0.0003178,2]
[311588639,1705254710173,-811.66,0.0003178,2]
[311588640,1705254710182,-500.0,0.0003178,2]
[311588641,1705254710192,-500.0,0.0003178,2]
[311588642,1705254710201,-577.79,0.0003178,2]
[311588643,1705254710210,-1041.79,0.0003178,2]
[311588644,1705254710220,-320.01189,0.0003178,7]
[311588645,1705254710229,-569.19,0.0003178,2]
[311588646,1705254710238,-320.01189,0.0003178,7]
[311588647,1705254710248,-500.0,0.0003178,2]
[311588648,1705254710257,-799.01,0.0003178,2]
[311588649,1705254710267,-500.0,0.0003178,2]
[311588650,1705254710277,-500.0,0.0003178,2]
[311588651,1705254710287,-1000.0,0.0003178,2]
[311588652,1705254710297,-1129.85,0.0003178,2]
[311588653,1705254710306,-500.0,0.0003178,2]
[311588654,1705254710316,-500.0,0.0003178,2]
[311588655,1705254710325,-623.05,0.0003178,2]
[311588656,1705254710335,-500.0,0.0003178,2]
[311588657,1705254710345,-500.0,0.0003178,2]
[311588658,1705254710354,-500.0,0.0003178,2]
[311588659,1705254710364,-500.0,0.0003178,2]
[311588660,1705254710373,-1412.28,0.0003178,2]
[311588661,1705254710383,-500.0,0.0003178,2]
[311588662,1705254710395,-500.0,0.0003178,2]
[311588663,1705254710405,-537.45310662,0.0003178,2]
[311588664,1705254710414,-500.0,0.0003178,2]
[311588665,1705254710424,-500.0,0.0003178,2]
[311588666,1705254710434,-500.0,0.0003178,2]
[311588667,1705254710443,-805.08,0.0003178,2]
[311588668,1705254710453,-585.49,0.0003178,2]
[311588669,1705254710462,-267.92789106,0.0003178,2]
[311588670,1705254710472,-500.0,0.0003178,2]
[311588671,1705254710481,-500.0,0.0003178,2]
[311588672,1705254710491,-620.94,0.0003178,2]
[311588673,1705254710500,-623.21,0.0003178,2]
[311588674,1705254710510,-528.91,0.0003178,2]
[311588675,1705254710519,-1190.47,0.0003178,2]
[311588676,1705254710528,-232.559274,0.0003178,7]
[311588677,1705254710537,-500.0,0.0003178,2]
[311588678,1705254710547,-500.0,0.0003178,2]
[311588679,1705254710556,-500.0,0.0003178,2]
[311588680,1705254710566,-232.559274,0.0003178,7]
[311588681,1705254710575,-1096.0,0.0003178,2]
[311588682,1705254710584,-500.0,0.0003178,2]
[311588683,1705254710593,-500.0,0.0003178,2]
[311588684,1705254710602,-572.26,0.0003178,2]
[311588685,1705254710614,-609.54,0.0003178,2]
[311588686,1705254710623,-500.0,0.0003178,2]
[311588687,1705254710632,-1186.28,0.0003178,2]
[311588688,1705254710641,-669.88,0.0003178,2]
[311588689,1705254710652,-1818.34,0.0003178,2]
[311588690,1705254710661,-685.95,0.0003178,2]
[311588691,1705254710670,-501.47,0.0003178,2]
[311588692,1705254710680,-518.54,0.0003178,2]
[311588693,1705254710690,-593.21,0.0003178,2]
[311588694,1705254710699,-529.69,0.0003178,2]
[311588695,1705254710708,-500.0,0.0003178,2]
[311588696,1705254710718,-541.64624853,0.0003178,2]
[311588697,1705254710731,-1016.0,0.0003178,2]
[311588698,1705254710740,-500.0,0.0003178,2]
[311588699,1705254710751,-1621.92,0.0003178,2]
[311588700,1705254710762,-722.69,0.0003178,2]
[311588701,1705254710771,-903.91,0.0003178,2]
[311588702,1705254710782,-536.0062586,0.0003178,2]
[311588703,1705254710792,-500.0,0.0003178,2]
[311588704,1705254710801,-991.32,0.0003178,2]
[311588705,1705254710811,-519.51613578,0.0003178,2]
[311588706,1705254710821,-525.84,0.0003178,2]
[311588707,1705254710832,-500.0,0.0003178,2]
[311588708,1705254710842,-505.34632499,0.0003178,2]
[311588709,1705254710852,-710.74,0.0003178,2]
[311588710,1705254710862,-500.0,0.0003178,2]
[311588711,1705254710872,-500.0,0.0003178,2]
[311588712,1705254710882,-704.61,0.0003178,2]
[311588713,1705254710893,-500.0,0.0003178,2]
[311588714,1705254710903,-709.82,0.0003178,2]
[311588715,1705254710912,-515.6729982,0.0003178,2]
[311588716,1705254710922,-500.0,0.0003178,2]
[311588717,1705254710932,-1223.32,0.0003178,2]
[311588718,1705254710943,-710.54,0.0003178,2]
[311588719,1705254710953,-1094.22,0.0003178,2]
[311588720,1705254710964,-500.0,0.0003178,2]
[311588721,1705254710974,-793.79,0.0003178,2]
[311588722,1705254710985,-500.0,0.0003178,2]
[311588723,1705254710995,-589.24,0.0003178,2]
[311588724,1705254711005,-500.0,0.0003178,2]
[311588725,1705254711015,-1336.34,0.0003178,2]
[311588726,1705254711026,-705.78,0.0003178,2]
[311588727,1705254711036,-500.0,0.0003178,2]
[311588728,1705254711047,-1278.82,0.0003178,2]
[311588729,1705254711056,-872.06,0.0003178,2]
[311588730,1705254711067,-1158.19,0.0003178,2]
[311588731,1705254711077,-614.72,0.0003178,2]
[311588732,1705254711086,-693.44,0.0003178,2]
[311588733,1705254711096,-1275.99,0.0003178,2]
[311588734,1705254711106,-630.84,0.0003178,2]
[311588735,1705254711116,-658.22,0.0003178,2]
[311588736,1705254711126,-530.81,0.0003178,2]
[311588737,1705254711135,-560.34,0.0003178,2]
[311588738,1705254711276,-500.0,0.0003178,2]
[311588739,1705254711287,-500.0,0.0003178,2]
[311588740,1705254711296,-510.82,0.0003178,2]
[311588741,1705254711306,-981.13,0.0003178,2]
[311588742,1705254711316,-416.42221552,0.0003178,2]
[311588743,1705254711326,-772.78,0.0003178,2]
[311588744,1705254711336,-500.0,0.0003178,2]
[311588745,1705254711345,-500.0,0.0003178,2]
[311588746,1705254711355,-500.0,0.0003178,2]
[311588747,1705254711365,-500.0,0.0003178,2]
[311588748,1705254711375,-500.0,0.0003178,2]
[311588749,1705254711385,-500.0,0.0003178,2]
[311588750,1705254711396,-848.01,0.0003178,2]
[311588751,1705254711406,-1459.83,0.0003178,2]
[311588752,1705254711416,-623.93,0.0003178,2]
[311588753,1705254711426,-500.0,0.0003178,2]
[311588754,1705254711436,-701.62,0.0003178,2]
[311588755,1705254711446,-945.09,0.0003178,2]
[311588756,1705254711456,-500.0,0.0003178,2]
[311588757,1705254711466,-500.0,0.0003178,2]
[311588758,1705254711476,-500.0,0.0003178,2]
[311588759,1705254711486,-177.46314051,0.0003178,2]
[311588760,1705254711497,-1076.56,0.0003178,2]
[311588761,1705254711507,-1062.5,0.0003178,2]
[311588762,1705254711517,-500.0,0.0003178,2]
[311588763,1705254711528,-1257.99,0.0003178,2]
[311588764,1705254711537,-500.0,0.0003178,2]
[311588765,1705254711547,-500.0,0.0003178,2]
[311588766,1705254711556,-539.15860861,0.0003178,2]
[311588767,1705254711566,-505.85,0.0003178,2]
[311588768,1705254711577,-911.18,0.0003178,2]
[311588769,1705254711588,-1141.48,0.0003178,2]
[311588770,1705254711598,-578.73,0.0003178,2]
[311588771,1705254711607,-876.48,0.0003178,2]
[311588772,1705254711616,-500.0,0.0003178,2]
[311588773,1705254711626,-500.0,0.0003178,2]
[311588774,1705254711636,-1408.36,0.0003178,2]
[311588775,1705254711647,-500.0,0.0003178,2]
[311588776,1705254711656,-652.92,0.0003178,2]
[311588777,1705254711666,-700.49,0.0003178,2]
[311588778,1705254711676,-535.93,0.0003178,2]
[311588779,1705254711685,-1369.55,0.0003178,2]
[311588780,1705254711696,-500.0,0.0003178,2]
[311588781,1705254711705,-655.51,0.0003178,2]
[311588782,1705254711715,-1693.97,0.0003178,2]
[311588783,1705254711725,-500.0,0.0003178,2]
[311588784,1705254711735,-1152.05,0.0003178,2]
[311588785,1705254711745,-576.41,0.0003178,2]
[311588786,1705254711754,-500.0,0.0003178,2]
[311588787,1705254711764,-674.01,0.0003178,2]
[311588788,1705254711774,-666.56,0.0003178,2]
[311588789,1705254711784,-1489.68,0.0003178,2]
[311588790,1705254711794,-500.0,0.0003178,2]
[311588791,1705254711804,-500.0,0.0003178,2]
[311588792,1705254711813,-1084.26,0.0003178,2]
[311588793,1705254711823,-500.0,0.0003178,2]
[311588794,1705254711832,-507.6,0.0003178,2]
[311588795,1705254711842,-500.0,0.0003178,2]
[311588796,1705254711852,-672.02,0.0003178,2]
[311588797,1705254711862,-500.0,0.0003178,2]
[311588798,1705254711872,-500.0,0.0003178,2]
[311588799,1705254711881,-500.0,0.0003178,2]
[311588800,1705254711891,-504.65566046,0.0003178,2]
[311588801,1705254711901,-500.0,0.0003178,2]
[311588802,1705254711911,-1102.17,0.0003178,2]
[311588803,1705254711920,-1616.4,0.0003178,2]
[311588804,1705254711930,-816.43,0.0003178,2]
[311588805,1705254711939,-500.0,0.0003178,2]
[311588806,1705254711949,-384.09145941,0.0003178,2]
[311588807,1705254711958,-500.0,0.0003178,2]
[311588808,1705254711969,-500.0,0.0003178,2]
[311588809,1705254711979,-807.28,0.0003178,2]
[311588810,1705254711988,-719.58,0.0003178,2]
[311588811,1705254711998,-500.0,0.0003178,2]
[311588812,1705254712009,-500.0,0.0003178,2]
[311588813,1705254712018,-815.19,0.0003178,2]
[311588814,1705254712028,-716.18,0.0003178,2]
[311588815,1705254712039,-675.06,0.0003178,2]
[311588816,1705254712049,-683.69,0.0003178,2]
[311588817,1705254712059,-500.0,0.0003178,2]
[311588818,1705254712071,-500.0,0.0003178,2]
[311588819,1705254712081,-623.19,0.0003178,2]
[311588820,1705254712091,-500.0,0.0003178,2]
[311588821,1705254712102,-500.0,0.0003178,2]
[311588822,1705254712113,-1243.95,0.0003178,2]
[311588823,1705254712123,-1006.49,0.0003178,2]
[311588824,1705254712132,-1113.17,0.0003178,2]
[311588825,1705254712142,-500.0,0.0003178,2]
[311588826,1705254712151,-500.0,0.0003178,2]
[311588827,1705254712161,-510.34,0.0003178,2]
[311588828,1705254712172,-674.12,0.0003178,2]
[311588829,1705254712182,-596.91,0.0003178,2]
[311588830,1705254712191,-941.41,0.0003178,2]
[311588831,1705254712201,-1779.19,0.0003178,2]
[311588832,1705254712211,-500.0,0.0003178,2]
[311588833,1705254712221,-536.5,0.0003178,2]
[311588834,1705254712231,-500.0,0.0003178,2]
[311588835,1705254712241,-1166.57,0.0003178,2]
[311588836,1705254712251,-500.0,0.0003178,2]
[311588837,1705254712261,-500.0,0.0003178,2]
[311588838,1705254712271,-500.0,0.0003178,2]
[311588839,1705254712280,-886.77,0.0003178,2]
[311588840,1705254712291,-1076.44,0.0003178,2]
[311588841,1705254712300,-500.0,0.0003178,2]
[311588842,1705254712309,-644.5,0.0003178,2]
[311588843,1705254712319,-806.69,0.0003178,2]
[311588844,1705254712328,-500.0,0.0003178,2]
[311588845,1705254712337,-500.0,0.0003178,2]
[311588846,1705254712347,-846.39,0.0003178,2]
[311588847,1705254712356,-500.0,0.0003178,2]
[311588848,1705254712366,-500.0,0.0003178,2]
[311588849,1705254712376,-654.91,0.0003178,2]
[311588850,1705254712386,-500.0,0.0003178,2]
[311588851,1705254712397,-500.0,0.0003178,2]
[311588852,1705254712407,-631.36,0.0003178,2]
[311588853,1705254712416,-505.5,0.0003178,2]
[311588854,1705254712426,-1250.68,0.0003178,2]
[311588855,1705254712436,-1405.3,0.0003178,2]
[311588856,1705254712447,-614.66,0.0003178,2]
[311588857,1705254712457,-500.0,0.0003178,2]
[311588858,1705254712466,-500.0,0.0003178,2]
[311588859,1705254712476,-500.0,0.0003178,2]
[311588860,1705254712497,-500.0,0.0003178,2]
[311588861,1705254712509,-500.0,0.0003178,2]
[311588862,1705254712520,-500.0,0.0003178,2]
[311588863,1705254712530,-500.38,0.0003178,2]
[311588864,1705254712540,-500.0,0.0003178,2]
[311588865,1705254712550,-500.0,0.0003178,2]
[311588866,1705254712560,-736.6,0.0003178,2]
[311588867,1705254712571,-500.0,0.0003178,2]
[311588868,1705254712581,-500.0,0.0003178,2]
[311588869,1705254712592,-698.58,0.0003178,2]
[311588870,1705254712602,-1600.55,0.0003178,2]
[311588871,1705254712612,-500.0,0.0003178,2]